bitfinex/quotes_BTCUSD_20240929
["timestamp","ask_amount","ask_price","bid_price","bid_amount"]
[1727623243673,0.06510412,65882.0,65877.0,0.079674]
[1727623243674,0.0196367,65880.0,65877.0,0.079674]
[1727623243902,0.002,65878.0,65877.0,0.079674]
[1727623244352,0.02163451,65878.0,65877.0,0.079674]
[1727623244694,0.01963451,65878.0,65877.0,0.079674]
[1727623245131,0.04646528,65882.0,65879.0,0.151792]
[1727623245363,0.19725528,65881.0,65877.0,0.079674]
[1727623245518,0.19725528,65881.0,65879.0,0.151793]
[1727623245519,0.04546528,65881.0,65879.0,0.151793]
[1727623245720,0.04546528,65881.0,65877.0,0.079674]
[1727623246044,0.001,65878.0,65877.0,0.231472]
[1727623246225,0.04546528,65881.0,65877.0,0.079674]
[1727623246365,0.04546528,65881.0,65877.0,0.383269]
[1727623246567,0.04546528,65881.0,65878.0,0.30359]
[1727623246978,0.04546528,65881.0,65879.0,0.151792]
[1727623247193,0.21998292,65883.0,65879.0,0.151792]
[1727623247194,0.04546528,65880.0,65879.0,0.151792]
[1727623248009,0.04546528,65880.0,65877.0,0.080674]
[1727623248215,0.04546528,65879.0,65878.0,0.151795]
[1727623248632,0.04546528,65879.0,65878.0,0.152795]
[1727623249050,0.04546528,65879.0,65878.0,0.151795]
[1727623249251,0.06819792,65880.0,65878.0,0.151795]
[1727623249463,0.06919792,65880.0,65878.0,0.152795]
[1727623249855,0.06919792,65880.0,65878.0,0.001]
[1727623250066,0.06919792,65880.0,65878.0,0.151795]
[1727623250290,0.06933326,65880.0,65879.0,0.151793]
[1727623251242,0.06833326,65880.0,65879.0,0.151793]
[1727623251693,0.06933326,65880.0,65879.0,0.151793]
[1727623252428,0.001,65880.0,65879.0,0.151793]
[1727623252858,0.001,65880.0,65879.0,0.152793]
[1727623253331,0.001,65880.0,65879.0,0.001]
[1727623253596,0.003,65880.0,65879.0,0.001]
[1727623254316,0.44378845,65880.0,65879.0,0.001]
[1727623254789,0.53489946,65880.0,65879.0,0.001]
[1727623257033,0.44378845,65880.0,65879.0,0.001]
[1727623259705,0.25148348,65880.0,65879.0,0.001]
[1727623259920,0.44367681,65880.0,65879.0,0.001]
[1727623261491,0.52429023,65880.0,65879.0,0.001]
[1727623261709,0.153793,65879.0,65878.0,0.000827]
[1727623261930,0.55602995,65879.0,65878.0,0.000827]
[1727623262356,0.63922995,65879.0,65878.0,0.000827]
[1727623262786,0.90749124,65879.0,65878.0,0.000827]
[1727623262996,0.90527529,65879.0,65878.0,0.000827]
[1727623264276,0.92357297,65879.0,65878.0,0.000827]
[1727623264494,0.92457297,65879.0,65878.0,0.000827]
[1727623265169,0.92457297,65879.0,65877.0,0.00071573]
[1727623265170,0.153795,65878.0,65877.0,0.00071573]
[1727623265393,0.76842173,65878.0,65877.0,0.00071573]
[1727623265603,0.78671831,65878.0,65877.0,0.00071573]
[1727623266711,0.80971831,65878.0,65877.0,0.00071573]
[1727623267194,0.94629189,65878.0,65877.0,0.00071573]
[1727623267433,0.80971831,65878.0,65877.0,0.00071573]
[1727623267687,0.81784776,65878.0,65877.0,0.00071573]
[1727623267901,0.82084776,65878.0,65877.0,0.00071573]
[1727623268411,0.69060661,65878.0,65877.0,0.00071573]
[1727623268900,0.70160661,65878.0,65877.0,0.00071573]
[1727623269888,0.96834554,65878.0,65877.0,0.00071573]
[1727623270514,0.70160661,65878.0,65877.0,0.00071573]
[1727623271510,0.54521855,65878.0,65877.0,0.00071573]
[1727623271772,0.54321855,65878.0,65877.0,0.00071573]
[1727623272013,0.54521855,65878.0,65877.0,0.00071573]
[1727623274462,0.54503585,65878.0,65877.0,0.00071573]
[1727623277156,0.40847893,65878.0,65877.0,0.00071573]
[1727623279193,0.41047893,65878.0,65877.0,0.00071573]
[1727623279441,0.40847893,65878.0,65877.0,0.00071573]
[1727623279948,0.56486699,65878.0,65877.0,0.00071573]
[1727623280177,0.56486699,65878.0,65872.0,0.22814556]
[1727623280178,0.153807,65873.0,65872.0,0.22814556]
[1727623280404,0.34437705,65873.0,65872.0,0.22814556]
[1727623280667,0.36258266,65873.0,65872.0,0.22814556]
[1727623280892,0.36258266,65873.0,65865.0,0.32274556]
[1727623280893,0.153823,65866.0,65865.0,0.32274556]
[1727623281121,0.002,65866.0,65865.0,0.32274556]
[1727623281359,0.17202094,65866.0,65865.0,0.32274556]
[1727623281602,0.17202094,65866.0,65865.0,0.0946]
[1727623283496,0.17172094,65866.0,65865.0,0.0946]
[1727623283719,0.17122094,65866.0,65865.0,0.0946]
[1727623283953,0.17202094,65866.0,65865.0,0.0946]
[1727623284425,0.17172094,65866.0,65865.0,0.0946]
[1727623284678,0.17112094,65866.0,65865.0,0.0946]
[1727623284926,0.17102094,65866.0,65865.0,0.0946]
[1727623285404,0.17072094,65866.0,65865.0,0.0946]
[1727623285671,0.17022094,65866.0,65865.0,0.0946]
[1727623285955,0.17002094,65866.0,65865.0,0.0946]
[1727623286219,0.16972094,65866.0,65865.0,0.0946]
[1727623286463,0.16942094,65866.0,65865.0,0.0946]
[1727623286720,0.16932094,65866.0,65865.0,0.0946]
[1727623286988,0.16912094,65866.0,65865.0,0.0946]
[1727623287198,0.16882094,65866.0,65865.0,0.0946]
[1727623287436,0.16832094,65866.0,65865.0,0.0946]
[1727623287669,0.16822094,65866.0,65865.0,0.0946]
[1727623287915,0.16812094,65866.0,65865.0,0.0946]
[1727623288156,0.16802094,65866.0,65865.0,0.0946]
[1727623288874,0.16802094,65866.0,65865.0,0.095427]
[1727623295515,0.17491613,65866.0,65865.0,0.095427]
[1727623299465,0.22041281,65866.0,65865.0,0.095427]
[1727623300522,0.22044596,65866.0,65865.0,0.095427]
[1727623300941,0.17491613,65866.0,65865.0,0.095427]
[1727623301200,0.22044596,65866.0,65865.0,0.095427]
[1727623301872,0.07162296,65866.0,65865.0,0.095427]
[1727623302571,0.22344596,65866.0,65865.0,0.095427]
[1727623303209,0.17791613,65866.0,65865.0,0.095427]
[1727623303640,0.02609313,65866.0,65865.0,0.095427]
[1727623304306,0.24621088,65866.0,65865.0,0.095427]
[1727623304516,0.09438788,65866.0,65865.0,0.095427]
[1727623305227,0.09444896,65866.0,65865.0,0.095427]
[1727623305446,0.02609313,65866.0,65865.0,0.095427]
[1727623305875,0.21704666,65866.0,65865.0,0.095427]
[1727623306090,0.36886966,65866.0,65865.0,0.095427]
[1727623306342,0.46001077,65866.0,65865.0,0.095427]
[1727623307437,0.36886966,65866.0,65865.0,0.095427]
[1727623308369,0.33097305,65866.0,65865.0,0.095427]
[1727623308596,0.33097305,65866.0,65865.0,0.247252]
[1727623308597,0.30824972,65866.0,65865.0,0.247252]
[1727623309271,0.21704666,65866.0,65865.0,0.095427]
[1727623309896,0.21721069,65866.0,65865.0,0.095427]
[1727623310585,0.3084169,65866.0,65865.0,0.095427]
[1727623310798,0.3084169,65866.0,65865.0,0.247252]
[1727623312084,0.30843435,65866.0,65865.0,0.247252]
[1727623313240,0.31008835,65866.0,65865.0,0.247252]
[1727623314088,0.31008835,65866.0,65865.0,0.095427]
[1727623314310,0.46191135,65866.0,65865.0,0.095427]
[1727623314540,0.02774713,65866.0,65865.0,0.095427]
[1727623314782,0.11894944,65866.0,65865.0,0.095427]
[1727623315016,0.31007789,65866.0,65865.0,0.095427]
[1727623316511,0.46190089,65866.0,65865.0,0.095427]
[1727623320038,0.31007789,65866.0,65865.0,0.095427]
[1727623321197,0.46190089,65866.0,65865.0,0.095427]
[1727623322523,0.31010223,65866.0,65865.0,0.095427]
[1727623324249,0.46192523,65866.0,65865.0,0.095427]
[1727623325593,0.31010223,65866.0,65865.0,0.247252]
[1727623325831,0.31010223,65866.0,65865.0,0.095427]
[1727623326042,0.31010223,65866.0,65865.0,0.247252]
[1727623327418,0.31024227,65866.0,65865.0,0.247252]
[1727623327890,0.09614283,65866.0,65865.0,0.247252]
[1727623330085,0.0710497,65866.0,65865.0,0.247252]
[1727623330327,0.02801044,65866.0,65865.0,0.247252]
[1727623330564,0.02801044,65866.0,65865.0,0.095427]
[1727623330804,0.002654,65866.0,65865.0,0.095427]
[1727623331049,0.02801274,65866.0,65865.0,0.095427]
[1727623331807,0.11920721,65866.0,65865.0,0.247252]
[1727623332098,0.31054292,65866.0,65865.0,0.095427]
[1727623332585,0.46236592,65866.0,65865.0,0.095427]
[1727623332834,0.31054292,65866.0,65865.0,0.095427]
[1727623333073,0.31054292,65866.0,65865.0,0.247252]
[1727623333327,0.31054292,65866.0,65865.0,0.095427]
[1727623333588,0.31054292,65866.0,65865.0,0.247252]
[1727623333820,0.21934845,65866.0,65865.0,0.247252]
[1727623334332,0.31054292,65866.0,65865.0,0.247252]
[1727623334565,0.21934845,65866.0,65865.0,0.247252]
[1727623335010,0.33334154,65866.0,65865.0,0.247252]
[1727623335449,0.33334154,65866.0,65865.0,0.095427]
[1727623336209,0.33334154,65866.0,65865.0,0.247252]
[1727623336438,0.33334154,65866.0,65865.0,0.095427]
[1727623336632,0.33325517,65866.0,65865.0,0.095427]
[1727623338333,0.48507817,65866.0,65865.0,0.095427]
[1727623339198,0.37105891,65866.0,65865.0,0.000827]
[1727623339426,0.47075891,65866.0,65865.0,0.000827]
[1727623339864,0.51799728,65866.0,65865.0,0.000827]
[1727623340295,0.54099728,65866.0,65865.0,0.000827]
[1727623340516,0.49275891,65866.0,65865.0,0.000827]
[1727623340761,0.49275891,65866.0,65856.0,0.22814556]
[1727623340762,0.46794158,65866.0,65856.0,0.22814556]
[1727623341009,0.151844,65857.0,65856.0,0.22814556]
[1727623341240,0.34306717,65857.0,65856.0,0.22814556]
[1727623341443,0.36841513,65857.0,65856.0,0.22814556]
[1727623341662,0.151846,65856.0,65855.0,0.00165]
[1727623341873,0.36841618,65856.0,65855.0,0.00165]
[1727623342539,0.48230667,65856.0,65855.0,0.00165]
[1727623342749,0.36841618,65856.0,65855.0,0.00165]
[1727623342954,0.45953049,65856.0,65855.0,0.00165]
[1727623343388,0.30766954,65856.0,65855.0,0.00165]
[1727623343651,0.31166954,65856.0,65855.0,0.00165]
[1727623343868,0.09968306,65856.0,65855.0,0.00165]
[1727623344529,0.03134701,65856.0,65855.0,0.00165]
[1727623344729,0.0769003,65856.0,65855.0,0.00165]
[1727623346855,0.09968306,65856.0,65855.0,0.00165]
[1727623347274,0.25152906,65856.0,65855.0,0.00165]
[1727623347939,0.2895809,65856.0,65855.0,0.00165]
[1727623348392,0.47959325,65856.0,65855.0,0.00165]
[1727623348757,0.57069261,65856.0,65855.0,0.00165]
[1727623349193,0.65049261,65856.0,65855.0,0.00165]
[1727623349582,0.45300536,65856.0,65855.0,0.00165]
[1727623349820,0.37320536,65856.0,65855.0,0.00165]
[1727623350284,0.18319301,65856.0,65855.0,0.00165]
[1727623350504,0.48663712,65856.0,65855.0,0.00165]
[1727623351018,0.18319301,65856.0,65855.0,0.00165]
[1727623351525,0.37319144,65856.0,65855.0,0.00165]
[1727623351755,0.46422912,65856.0,65855.0,0.00165]
[1727623351949,0.18319301,65856.0,65855.0,0.00165]
[1727623352197,0.25145966,65856.0,65855.0,0.00165]
[1727623352404,0.37311853,65856.0,65855.0,0.00165]
[1727623352651,0.31231021,65856.0,65855.0,0.00165]
[1727623352878,0.09960656,65856.0,65855.0,0.00165]
[1727623353340,0.25145256,65856.0,65855.0,0.00165]
[1727623353565,0.18319301,65856.0,65855.0,0.00165]
[1727623353799,0.09960147,65856.0,65855.0,0.00165]
[1727623354032,0.03134701,65856.0,65855.0,0.00165]
[1727623354284,0.18319301,65856.0,65855.0,0.00165]
[1727623354497,0.37290078,65856.0,65855.0,0.00165]
[1727623354960,0.46381806,65856.0,65855.0,0.00165]
[1727623355891,0.37281857,65856.0,65855.0,0.00165]
[1727623357357,0.18319301,65856.0,65855.0,0.00165]
[1727623358336,0.29078454,65856.0,65855.0,0.00165]
[1727623358583,0.55033643,65856.0,65855.0,0.00165]
[1727623358824,0.151862,65849.0,65848.0,0.22979956]
[1727623359108,0.30069827,65849.0,65848.0,0.22979956]
[1727623359355,0.4372121,65849.0,65848.0,0.001654]
[1727623359583,0.25771087,65849.0,65848.0,0.001654]
[1727623360339,0.73762538,65849.0,65848.0,0.001654]
[1727623360579,0.64870173,65849.0,65848.0,0.001654]
[1727623360823,0.65070173,65849.0,65848.0,0.001654]
[1727623361051,0.79088408,65849.0,65848.0,0.001654]
[1727623361534,0.87878801,65849.0,65848.0,0.001654]
[1727623362186,0.87478801,65849.0,65848.0,0.001654]
[1727623362607,0.79288408,65849.0,65848.0,0.001654]
[1727623362818,0.35787716,65849.0,65848.0,0.001654]
[1727623363053,0.27726374,65849.0,65848.0,0.001654]
[1727623363266,0.26226374,65849.0,65848.0,0.001654]
[1727623363481,0.04223545,65849.0,65848.0,0.001654]
[1727623364155,0.19409745,65849.0,65848.0,0.001654]
[1727623366998,0.04223545,65849.0,65848.0,0.001654]
[1727623367210,0.19409745,65849.0,65848.0,0.001654]
[1727623367657,0.23954211,65849.0,65848.0,0.001654]
[1727623367870,0.23952942,65849.0,65848.0,0.001654]
[1727623368128,0.19409745,65849.0,65848.0,0.001654]
[1727623368551,0.23952651,65849.0,65848.0,0.001654]
[1727623369672,0.3595597,65849.0,65848.0,0.001654]
[1727623369902,0.60663728,65849.0,65848.0,0.001654]
[1727623370146,0.41873064,65849.0,65848.0,0.001654]
[1727623371527,0.48685678,65849.0,65848.0,0.001654]
[1727623371757,0.60989539,65849.0,65848.0,0.001654]
[1727623372171,0.54176925,65849.0,65848.0,0.001654]
[1727623372382,0.6098965,65849.0,65848.0,0.001654]
[1727623373212,0.54176925,65849.0,65848.0,0.001654]
[1727623375777,0.72975717,65849.0,65848.0,0.001654]
[1727623375958,0.60972398,65849.0,65848.0,0.001654]
[1727623376397,0.70056033,65849.0,65848.0,0.001654]
[1727623379245,0.60972398,65849.0,65848.0,0.001654]
[1727623379702,0.61900873,65849.0,65848.0,0.001654]
[1727623380323,0.52812398,65849.0,65848.0,0.001654]
[1727623380771,0.68451204,65849.0,65848.0,0.001654]
[1727623381176,0.52812398,65849.0,65848.0,0.001654]
[1727623382332,0.64166942,65849.0,65848.0,0.001654]
[1727623383417,0.40508537,65849.0,65848.0,0.001654]
[1727623383632,0.51877448,65849.0,65848.0,0.001654]
[1727623384493,0.49577448,65849.0,65848.0,0.001654]
[1727623384736,0.34391248,65849.0,65848.0,0.001654]
[1727623384962,0.49577448,65849.0,65848.0,0.001654]
[1727623385183,0.19409745,65849.0,65848.0,0.001654]
[1727623385412,0.32219563,65849.0,65848.0,0.001654]
[1727623385634,0.32219563,65849.0,65848.0,0.153518]
[1727623385867,0.38307788,65849.0,65848.0,0.001654]
[1727623386092,0.19409745,65849.0,65848.0,0.001654]
[1727623386306,0.47413882,65849.0,65848.0,0.001654]
[1727623389267,0.59366461,65849.0,65848.0,0.001654]
[1727623389676,0.47413882,65849.0,65848.0,0.001654]
[1727623390153,0.32227682,65849.0,65848.0,0.001654]
[1727623390611,0.47413882,65849.0,65848.0,0.001654]
[1727623391258,0.23129707,65849.0,65848.0,0.001654]
[1727623391687,0.38315907,65849.0,65848.0,0.001654]
[1727623392336,0.49684818,65849.0,65848.0,0.001654]
[1727623393940,0.38315907,65849.0,65848.0,0.001654]
[1727623394366,0.23129707,65849.0,65848.0,0.001654]
[1727623396125,0.38315907,65849.0,65848.0,0.001654]
[1727623396579,0.23129707,65849.0,65848.0,0.001654]
[1727623396792,0.38315907,65849.0,65848.0,0.001654]
[1727623398119,0.23129707,65849.0,65848.0,0.001654]
[1727623398337,0.49684818,65849.0,65848.0,0.001654]
[1727623398795,0.20170056,65849.0,65848.0,0.47186356]
[1727623399014,0.11057897,65849.0,65848.0,0.319418]
[1727623399232,0.04223545,65849.0,65848.0,0.319418]
[1727623399677,0.03323545,65849.0,65848.0,0.319418]
[1727623399891,0.02523545,65849.0,65848.0,0.319418]
[1727623400349,0.02623545,65849.0,65848.0,0.319418]
[1727623402289,0.01915393,65849.0,65848.0,0.319418]
[1727623403655,0.01915393,65849.0,65848.0,0.40012237]
[1727623403890,0.001,65849.0,65848.0,0.40012237]
[1727623409326,0.01916205,65849.0,65848.0,0.40012237]
[1727623409542,0.001,65849.0,65848.0,0.40012237]
[1727623410199,0.01916277,65849.0,65848.0,0.40012237]
[1727623411928,0.001,65849.0,65848.0,0.40012237]
[1727623415021,0.001,65849.0,65848.0,0.53191821]
[1727623417021,0.001,65849.0,65848.0,0.63191821]
[1727623418133,0.001656,65855.0,65854.0,0.328751]
[1727623418361,0.001656,65855.0,65854.0,0.40945537]
[1727623419468,0.001656,65855.0,65854.0,0.41245537]
[1727623420850,0.001656,65855.0,65854.0,0.331751]
[1727623421508,0.002656,65855.0,65854.0,0.331751]
[1727623423723,0.002656,65855.0,65854.0,0.003]
[1727623423989,0.17243243,65855.0,65854.0,0.003]
[1727623424233,0.23266438,65855.0,65854.0,0.003]
[1727623425122,0.24385378,65855.0,65854.0,0.003]
[1727623425831,0.18362183,65855.0,65854.0,0.003]
[1727623426717,0.22911965,65855.0,65854.0,0.003]
[1727623427648,0.151852,65854.0,65850.0,0.22814556]
[1727623427874,0.07627165,65855.0,65850.0,0.22814556]
[1727623427875,0.151853,65853.0,65850.0,0.22814556]
[1727623428102,0.18095825,65853.0,65850.0,0.22814556]
[1727623428318,0.18095825,65853.0,65850.0,0.38000456]
[1727623428528,0.02910525,65853.0,65848.0,0.22979956]
[1727623428743,0.18095825,65853.0,65849.0,0.151861]
[1727623429630,0.02910525,65853.0,65850.0,0.151859]
[1727623429846,0.02910525,65853.0,65848.0,0.22979956]
[1727623430272,0.02910525,65853.0,65850.0,0.151858]
[1727623430916,0.02910525,65853.0,65850.0,0.151859]
[1727623431359,0.07460865,65853.0,65851.0,0.151857]
[1727623431598,0.07460865,65853.0,65852.0,0.151855]
[1727623431833,0.02910525,65853.0,65852.0,0.328755]
[1727623434167,0.07462693,65853.0,65852.0,0.328755]
[1727623436735,0.07462693,65853.0,65852.0,0.1769]
[1727623437165,0.07462693,65853.0,65852.0,0.328755]
[1727623437391,0.07462693,65853.0,65852.0,0.1769]
[1727623437628,0.07464406,65853.0,65852.0,0.1769]
[1727623438342,0.02910525,65853.0,65852.0,0.1769]
[1727623439280,0.02910525,65853.0,65852.0,0.328755]
[1727623439520,0.02910525,65853.0,65852.0,0.1769]
[1727623440267,0.09741347,65853.0,65852.0,0.328755]
[1727623440519,0.09741347,65853.0,65852.0,0.1769]
[1727623440520,0.02910525,65853.0,65852.0,0.1769]
[1727623440763,0.09741347,65853.0,65852.0,0.1769]
[1727623440992,0.09743235,65853.0,65852.0,0.1769]
[1727623441224,0.24928535,65853.0,65849.0,0.15186]
[1727623441456,0.04555452,65851.0,65849.0,0.15186]
[1727623441927,0.02909173,65850.0,65849.0,0.15186]
[1727623442679,0.07464625,65850.0,65849.0,0.15186]
[1727623444305,0.07564625,65850.0,65849.0,0.15186]
[1727623444833,0.07564625,65850.0,65849.0,0.15486]
[1727623445584,0.07566561,65850.0,65849.0,0.15486]
[1727623448207,0.07566797,65850.0,65849.0,0.15486]
[1727623450121,0.22752797,65850.0,65849.0,0.003]
[1727623450364,0.46310665,65850.0,65849.0,0.003]
[1727623450614,0.22014129,65850.0,65849.0,0.003]
[1727623450856,0.46314906,65850.0,65849.0,0.003]
[1727623451097,0.46314906,65850.0,65848.0,0.001654]
[1727623451098,0.151862,65849.0,65848.0,0.001654]
[1727623451344,0.4621566,65849.0,65848.0,0.001654]
[1727623452276,0.46215162,65849.0,65848.0,0.001654]
[1727623452710,0.37100521,65849.0,65848.0,0.001654]
[1727623453357,0.21914321,65849.0,65848.0,0.001654]
[1727623453589,0.37100521,65849.0,65848.0,0.001654]
[1727623454256,0.02909365,65849.0,65848.0,0.001654]
[1727623454757,0.18095565,65849.0,65848.0,0.001654]
[1727623455197,0.02909365,65849.0,65848.0,0.001654]
[1727623455420,0.18095565,65849.0,65848.0,0.001654]
[1727623455889,0.37072327,65849.0,65848.0,0.001654]
[1727623456109,0.02909365,65849.0,65848.0,0.001654]
[1727623456383,0.18095565,65849.0,65848.0,0.001654]
[1727623457044,0.27210206,65849.0,65848.0,0.001654]
[1727623457262,0.46183868,65849.0,65848.0,0.001654]
[1727623457482,0.37071166,65849.0,65848.0,0.001654]
[1727623457950,0.37271166,65849.0,65848.0,0.001654]
[1727623458185,0.22084966,65849.0,65848.0,0.001654]
[1727623458834,0.37271166,65849.0,65848.0,0.001654]
[1727623459494,0.22084966,65849.0,65848.0,0.001654]
[1727623459714,0.22061765,65849.0,65848.0,0.001654]
[1727623460153,0.3117305,65849.0,65848.0,0.001654]
[1727623460381,0.54027965,65849.0,65848.0,0.001654]
[1727623460619,0.65417462,65849.0,65848.0,0.001654]
[1727623460851,0.54027965,65849.0,65848.0,0.001654]
[1727623464269,0.54002239,65849.0,65848.0,0.001654]
[1727623465590,0.46372239,65849.0,65848.0,0.001654]
[1727623465823,0.37222239,65849.0,65848.0,0.001654]
[1727623469143,0.37201575,65849.0,65848.0,0.001654]
[1727623478523,0.37144527,65849.0,65848.0,0.001654]
[1727623483419,0.3714369,65849.0,65848.0,0.001654]
[1727623495268,0.35628782,65849.0,65848.0,0.001654]
[1727623495526,0.2195749,65849.0,65848.0,0.326518]
[1727623497679,0.2198173,65849.0,65848.0,0.174654]
[1727623500485,0.2198173,65849.0,65848.0,0.326518]
[1727623500732,0.2198173,65849.0,65848.0,0.174654]
[1727623501195,0.21986718,65849.0,65848.0,0.174654]
[1727623502853,0.37172918,65849.0,65848.0,0.174654]
[1727623503272,0.21986718,65849.0,65848.0,0.174654]
[1727623504392,0.21986718,65849.0,65848.0,0.326518]
[1727623504872,0.21986718,65849.0,65848.0,0.174654]
[1727623506243,0.21986718,65849.0,65848.0,0.326518]
[1727623509438,0.21986718,65849.0,65848.0,0.4514621]
[1727623509655,0.07670524,65849.0,65848.0,0.4514621]
[1727623509880,0.002,65849.0,65848.0,0.5514621]
[1727623510102,0.002,65849.0,65848.0,0.70675004]
[1727623510325,0.04726759,65855.0,65848.0,0.38188604]
[1727623510549,0.04726759,65855.0,65854.0,0.325251]
[1727623510769,0.001656,65855.0,65854.0,0.325251]
[1727623512963,0.002656,65855.0,65854.0,0.325251]
[1727623513192,0.002656,65855.0,65854.0,0.327251]
[1727623527457,0.002656,65855.0,65854.0,0.48253894]
[1727623527686,0.002656,65855.0,65854.0,0.638927]
[1727623527926,0.002656,65855.0,65854.0,0.743927]
[1727623528145,0.002656,65855.0,65854.0,0.745927]
[1727623528371,0.002656,65855.0,65854.0,0.743927]
[1727623528620,0.002656,65855.0,65854.0,0.745927]
[1727623529052,0.002656,65855.0,65854.0,0.75662526]
[1727623529272,0.002656,65855.0,65854.0,0.75462526]
[1727623529500,0.001656,65855.0,65854.0,0.75462526]
[1727623529728,0.002656,65855.0,65854.0,0.75262526]
[1727623529946,0.001656,65855.0,65854.0,0.75262526]
[1727623530182,0.002656,65855.0,65854.0,0.75762526]
[1727623530433,0.003656,65855.0,65854.0,0.75762526]
[1727623534583,0.003656,65855.0,65854.0,0.75845226]
[1727623535284,0.003656,65855.0,65854.0,0.83914271]
[1727623535504,0.003656,65855.0,65854.0,0.83414271]
[1727623535984,0.003656,65855.0,65854.0,0.67775465]
[1727623537167,0.001656,65855.0,65854.0,0.58136594]
[1727623537406,0.003656,65855.0,65854.0,0.58636594]
[1727623537626,0.002656,65855.0,65854.0,0.58636594]
[1727623537844,0.001656,65855.0,65854.0,0.58136594]
[1727623538087,0.002656,65855.0,65854.0,0.58136594]
[1727623539700,0.003656,65855.0,65854.0,0.58636594]
[1727623551584,0.003656,65855.0,65854.0,0.431078]
[1727623551904,0.003656,65855.0,65854.0,0.349278]
[1727623552124,0.003656,65855.0,65854.0,0.005827]
[1727623552370,0.02749424,65855.0,65854.0,0.105827]
[1727623553040,0.02649424,65855.0,65854.0,0.252678]
[1727623553166,0.02549424,65855.0,65854.0,0.100827]
[1727623553390,0.02649424,65855.0,65854.0,0.105827]
[1727623553594,0.02749424,65855.0,65854.0,0.257678]
[1727623553800,0.02749424,65855.0,65854.0,0.105827]
[1727623554476,0.07303213,65855.0,65854.0,0.257678]
[1727623554681,0.07303213,65855.0,65854.0,0.157678]
[1727623555544,0.02749424,65855.0,65854.0,0.157678]
[1727623556662,0.07306242,65855.0,65854.0,0.157678]
[1727623556881,0.07306223,65855.0,65854.0,0.157678]
[1727623557104,0.02749424,65855.0,65854.0,0.005827]
[1727623557313,0.09584647,65855.0,65854.0,0.157678]
[1727623557526,0.02749424,65855.0,65854.0,0.157678]
[1727623559290,0.07305686,65855.0,65854.0,0.157678]
[1727623563597,0.02749424,65855.0,65854.0,0.23836845]
[1727623564033,0.02749424,65855.0,65854.0,0.157678]
[1727623566586,0.07305686,65855.0,65854.0,0.157678]
[1727623567034,0.0728741,65855.0,65854.0,0.157678]
[1727623569456,0.02731148,65855.0,65854.0,0.157678]
[1727623571356,0.07285688,65855.0,65854.0,0.157678]
[1727623571566,0.02731148,65855.0,65854.0,0.157678]
[1727623571778,0.02731148,65855.0,65854.0,0.005827]
[1727623571989,0.02731148,65855.0,65854.0,0.157678]
[1727623573922,0.02731148,65855.0,65854.0,0.005827]
[1727623574377,0.17915948,65855.0,65854.0,0.005827]
[1727623574626,0.2247023,65855.0,65854.0,0.005827]
[1727623575661,0.17915948,65855.0,65854.0,0.005827]
[1727623575902,0.24747372,65855.0,65854.0,0.005827]
[1727623576106,0.09562572,65855.0,65854.0,0.005827]
[1727623576325,0.24747372,65855.0,65854.0,0.005827]
[1727623577369,0.09562572,65855.0,65854.0,0.005827]
[1727623577610,0.24747372,65855.0,65854.0,0.005827]
[1727623579072,0.45967291,65855.0,65854.0,0.005827]
[1727623579314,0.45964472,65855.0,65854.0,0.005827]
[1727623579542,0.36853392,65855.0,65854.0,0.005827]
[1727623580325,0.48242242,65855.0,65854.0,0.005827]
[1727623580554,0.36853392,65855.0,65854.0,0.005827]
[1727623583081,0.36753392,65855.0,65854.0,0.000827]
[1727623583289,0.36753392,65855.0,65854.0,0.001827]
[1727623583498,0.39033711,65855.0,65854.0,0.001827]
[1727623583951,0.39033711,65855.0,65854.0,0.000827]
[1727623583952,0.38966261,65855.0,65854.0,0.000827]
[1727623584180,0.54605067,65855.0,65854.0,0.000827]
[1727623584439,0.38966261,65855.0,65854.0,0.000827]
[1727623586039,0.38966261,65855.0,65854.0,0.001827]
[1727623587968,0.36585942,65855.0,65854.0,0.001827]
[1727623588649,0.36579336,65855.0,65854.0,0.001827]
[1727623588887,0.36579336,65855.0,65848.0,0.101654]
[1727623588888,0.355062,65849.0,65848.0,0.101654]
[1727623589151,0.74465999,65849.0,65848.0,0.101654]
[1727623589377,0.61507874,65849.0,65848.0,0.101654]
[1727623589593,0.61707874,65849.0,65848.0,0.101654]
[1727623590414,0.62607874,65849.0,65848.0,0.101654]
[1727623590624,0.7734668,65849.0,65848.0,0.101654]
[1727623590853,0.7924668,65849.0,65848.0,0.101654]
[1727623591341,0.81627611,65849.0,65848.0,0.101654]
[1727623591572,0.96982377,65849.0,65848.0,0.101654]
[1727623592495,0.81627611,65849.0,65848.0,0.101654]
[1727623592734,0.7924668,65849.0,65848.0,0.101654]
[1727623593161,0.79472307,65849.0,65848.0,0.101654]
[1727623593588,0.74752122,65849.0,65848.0,0.101654]
[1727623595728,0.73852122,65849.0,65848.0,0.101654]
[1727623595938,0.72852122,65849.0,65848.0,0.101654]
[1727623596141,0.74252122,65849.0,65848.0,0.101654]
[1727623596349,0.75652122,65849.0,65848.0,0.101654]
[1727623596574,0.86652122,65849.0,65848.0,0.101654]
[1727623597041,0.91357114,65849.0,65848.0,0.101654]
[1727623597243,1.18081735,65849.0,65848.0,0.101654]
[1727623597456,1.18081735,65849.0,65846.0,0.00165]
[1727623597457,0.017,65847.0,65846.0,0.00165]
[1727623597744,0.58483298,65847.0,65846.0,0.00165]
[1727623597928,0.79983801,65847.0,65846.0,0.00165]
[1727623598196,1.06361637,65847.0,65846.0,0.00165]
[1727623598632,0.94195039,65847.0,65846.0,0.00165]
[1727623599085,0.174881,65841.0,65832.0,0.0783]
[1727623599528,0.38988502,65841.0,65832.0,0.0783]
[1727623599738,0.50343129,65841.0,65832.0,0.0783]
[1727623600391,0.50343129,65841.0,65831.0,0.099028]
[1727623600392,0.66287547,65841.0,65831.0,0.000828]
[1727623600632,0.82126353,65841.0,65835.0,0.22814556]
[1727623600851,0.73857308,65841.0,65835.0,0.22814556]
[1727623601069,0.84307594,65841.0,65835.0,0.22814556]
[1727623601530,0.84507594,65841.0,65835.0,0.22814556]
[1727623601746,0.98127337,65841.0,65835.0,0.22814556]
[1727623602438,0.96727337,65841.0,65835.0,0.22814556]
[1727623602674,0.84507594,65841.0,65835.0,0.22814556]
[1727623602878,0.83526353,65841.0,65835.0,0.22814556]